bitfinex/quotes_ETHUSD_20250213
["timestamp","ask_amount","ask_price","bid_price","bid_amount"]
[1739462223957,0.06216977,2650.1,2649.4,0.8112]
[1739462224296,3.77423,2649.6,2649.0,4.6074]
[1739462224452,3.0,2650.3,2649.4,3.77435]
[1739462224653,3.77359,2650.0,2649.5,3.7742]
[1739462224862,4.0854,2650.2,2649.5,3.7742]
[1739462224863,0.312,2650.2,2649.5,0.7634]
[1739462225046,0.312,2650.2,2649.7,3.7739]
[1739462225281,0.312,2650.2,2649.8,3.7738]
[1739462225472,0.312,2650.2,2649.9,3.77369]
[1739462225685,0.312,2650.2,2649.7,3.77394]
[1739462225878,0.312,2650.2,2649.7,0.831153]
[1739462226082,3.7739,2649.8,2649.5,0.7634]
[1739462226300,3.77368,2650.0,2649.5,3.77428]
[1739462226451,0.0075,2650.1,2649.5,3.77421]
[1739462226646,0.0075,2650.1,2649.6,3.77403]
[1739462226851,2.2765,2650.1,2649.7,3.7739]
[1739462227053,2.269,2650.1,2649.7,0.754793]
[1739462227304,2.269,2650.1,2650.0,3.77358]
[1739462227681,2.269,2650.1,2649.9,3.77371]
[1739462228078,2.269,2650.1,2650.0,3.77358]
[1739462228282,2.269,2650.3,2650.0,3.77358]
[1739462228498,2.269,2650.3,2650.0,3.7735]
[1739462228713,2.269,2650.3,2650.1,3.77342]
[1739462228980,0.05364507,2650.2,2650.0,3.7735]
[1739462229222,2.269,2650.3,2650.1,3.77344]
[1739462229420,6.04131,2650.9,2650.4,3.77291]
[1739462229732,2.269,2650.9,2650.5,3.77286]
[1739462229911,6.0414,2650.9,2650.3,0.8067]
[1739462230232,6.0414,2650.9,2650.8,3.77244]
[1739462230233,2.269,2650.9,2650.8,3.77244]
[1739462230384,2.269,2650.9,2650.3,0.8067]
[1739462230586,2.269,2650.8,2650.4,3.77293]
[1739462230783,6.04151,2650.8,2650.3,1.564693]
[1739462231021,6.04145,2650.8,2650.3,4.57973]
[1739462231334,2.269,2650.6,2650.3,4.57975]
[1739462231998,3.77201,2651.1,2650.5,3.77287]
[1739462232197,3.77201,2651.1,2650.6,3.77272]
[1739462232693,3.7723,2650.9,2650.3,4.57977]
[1739462232894,3.7723,2650.9,2650.1,0.76988167]
[1739462232895,2.269,2650.9,2650.1,3.77342]
[1739462233096,3.77325,2650.3,2650.0,0.7581]
[1739462233305,3.77338,2650.2,2649.7,5.27285143]
[1739462233523,3.77325,2650.3,2649.7,5.27285143]
[1739462234017,3.77325,2650.3,2649.8,3.77384]
[1739462234222,2.269,2650.5,2649.7,0.7581]
[1739462234423,3.77333,2650.2,2649.7,4.53203]
[1739462234786,0.312,2650.4,2649.7,0.7581]
[1739462235084,0.312,2650.4,2650.1,3.77342]
[1739462235316,0.312,2650.4,2650.3,3.77315]
[1739462235583,3.77208,2651.1,2650.6,3.77267]
[1739462236479,7.549,2651.2,2650.7,3.77249]
[1739462236883,11.32098,2651.2,2650.7,3.77249]
[1739462237115,2.269,2651.2,2650.7,3.77249]
[1739462237320,2.269,2651.3,2650.7,0.377249]
[1739462237642,2.269,2651.3,2650.9,3.77228]
[1739462237793,2.269,2651.6,2650.9,0.8227]
[1739462237987,6.04043,2651.6,2651.0,3.77216]
[1739462238327,2.269,2651.7,2650.9,0.8227]
[1739462238529,2.269,2651.7,2651.2,3.7718]
[1739462238781,2.269,2651.7,2651.3,3.7717]
[1739462238917,6.0402,2651.7,2650.9,0.8227]
[1739462239121,2.269,2651.7,2651.3,3.7717]
[1739462239352,2.269,2651.7,2651.0,0.53683302]
[1739462239353,2.2765,2651.8,2651.4,3.77158]
[1739462239555,6.0476,2651.8,2651.3,3.77171]
[1739462239723,2.2765,2651.8,2651.3,3.77171]
[1739462239940,0.015,2651.4,2650.8,0.7732202]
[1739462240249,0.015,2651.4,2650.3,3.77313]
[1739462240250,3.7722,2651.0,2650.3,4.58496]
[1739462240457,3.7722,2651.0,2650.5,3.77279]
[1739462240656,0.0075,2651.4,2650.9,3.77223]
[1739462240854,3.77136,2651.6,2651.0,3.77208]
[1739462241054,3.7714,2651.6,2651.0,7.54414]
[1739462241260,3.7714,2651.6,2650.8,0.7992]
[1739462241261,3.77153,2651.5,2650.9,3.77221]
[1739462241465,3.77161,2651.4,2650.8,4.57157]
[1739462241795,3.77226,2651.0,2650.5,0.7768]
[1739462242067,3.77226,2651.0,2650.4,3.77291]
[1739462242068,3.77239,2650.9,2650.4,3.77291]
[1739462242438,3.77245,2650.8,2650.3,4.51619708]
[1739462242644,2.269,2651.0,2650.4,3.77301]
[1739462242954,3.77231,2650.9,2650.4,7.54593]
[1739462243367,2.269,2651.0,2650.6,3.77259]
[1739462243566,2.269,2651.3,2650.3,1.64969479]
[1739462243780,2.269,2651.3,2651.1,3.77201]
[1739462243983,0.05336038,2651.2,2651.1,3.77201]
[1739462244351,4.09069,2651.7,2651.1,3.77201]
[1739462244352,3.77138,2651.6,2651.1,0.8285]
[1739462244679,2.269,2651.6,2651.1,4.60051]
[1739462244883,0.05336038,2651.5,2651.1,4.60051]
[1739462245094,0.05336038,2651.5,2651.2,3.77182]
[1739462245379,0.05336038,2651.5,2651.1,0.8285]
[1739462245583,0.05336038,2651.5,2651.1,4.6005]
[1739462245883,0.05336038,2651.5,2651.1,0.8285]
[1739462246090,0.05336038,2651.5,2651.2,3.77185]
[1739462246388,0.05336038,2651.5,2651.2,3.77186]
[1739462246558,0.05336038,2651.5,2651.1,0.8285]
[1739462246559,0.05336038,2651.5,2651.1,4.6005]
[1739462246755,0.05336038,2651.5,2651.4,3.77159]
[1739462247284,2.269,2651.8,2651.4,3.77159]
[1739462247585,0.05336038,2651.5,2651.4,3.77159]
[1739462247741,2.269,2651.8,2651.4,3.77159]
[1739462247943,0.05336038,2651.5,2651.4,3.77159]
[1739462248172,2.284,2652.2,2651.5,3.77134]
[1739462248381,6.03983,2652.0,2651.5,3.77134]
[1739462248586,0.326,2652.2,2651.1,5.51328187]
[1739462248587,3.77123,2651.7,2651.1,5.51328187]
[1739462248882,3.77123,2651.7,2651.2,3.77179]
[1739462249181,3.77132,2651.6,2651.2,3.77179]
[1739462249383,3.77123,2651.7,2651.2,7.54358]
[1739462249581,2.269,2651.8,2651.1,0.8285]
[1739462249784,2.269,2651.8,2651.4,3.77147]
[1739462250009,2.269,2651.8,2651.2,3.77187]
[1739462250291,2.269,2651.8,2651.4,3.77148]
[1739462250592,2.269,2651.8,2651.2,3.77177]
[1739462250775,2.269,2651.8,2651.3,3.7716]
[1739462251089,6.03981,2652.0,2651.5,3.77142]
[1739462251848,6.03976,2652.0,2651.3,3.77164]
[1739462252194,3.77104,2651.8,2651.3,3.77164]
[1739462252692,2.269,2651.9,2651.3,4.608846]
[1739462252896,2.269,2651.9,2651.3,0.837206]
[1739462253093,2.269,2652.1,2651.7,3.77109]
[1739462253794,2.269,2652.1,2651.6,3.77121]
[1739462254093,2.269,2652.0,2651.8,3.771]
[1739462254689,2.269,2652.0,2651.8,3.77094]
[1739462254888,2.269,2652.0,2651.7,4.52444]
[1739462255111,2.269,2652.4,2651.7,1.205744]
[1739462255410,6.03919,2652.4,2651.9,3.77075]
[1739462255697,6.0392,2652.4,2651.9,7.54155]
[1739462256000,6.03922,2652.4,2651.9,3.77075]
[1739462256493,2.269,2652.2,2651.7,3.77106]
[1739462256678,3.77088,2651.9,2651.4,0.7847]
[1739462256884,3.77088,2651.9,2651.5,3.0]
[1739462257214,3.77088,2651.9,2651.5,4.432792]
[1739462257439,3.77088,2651.9,2651.5,5.204232]
[1739462257552,9.70338449,2652.1,2651.6,3.77127]
[1739462257752,3.7708,2652.0,2651.5,1.432792]
[1739462257948,3.7708,2652.0,2651.6,3.77128]
[1739462258180,2.269,2652.1,2651.6,3.7712]
[1739462258407,6.03966,2652.1,2651.6,3.7712]
[1739462258959,3.77086,2652.0,2651.5,3.77142]
[1739462259314,2.269,2651.9,2651.4,3.7847]
[1739462259613,2.269,2652.1,2651.8,3.77101]
[1739462259955,2.269,2652.1,2651.8,7.54193]
[1739462260173,3.78531,2652.3,2651.8,3.77092]
[1739462260381,7.74495449,2652.4,2651.6,3.7712]
[1739462260382,0.311,2652.4,2652.0,3.77065]
[1739462260584,2.58,2652.4,2652.0,3.77065]
[1739462260861,2.269,2652.4,2652.1,3.77056]
[1739462261063,3.76991,2652.6,2652.1,3.77047]
[1739462261473,3.76991,2652.6,2652.1,3.77049]
[1739462261705,6.03891,2652.6,2652.2,3.77044]
[1739462261913,2.269,2652.6,2652.2,3.77042]
[1739462262124,6.03877,2652.7,2652.3,3.77027]
[1739462262413,6.03875,2652.7,2652.2,4.2648985]
[1739462262627,9.80859,2652.7,2652.2,4.2648885]
[1739462262768,0.05466178,2652.6,2652.2,4.2648885]
[1739462263122,0.05466178,2652.6,2652.3,4.19678885]
[1739462263662,2.269,2652.5,2652.3,0.42648885]
[1739462264162,6.0394,2652.3,2651.8,3.77096]
[1739462264365,3.77051,2652.2,2651.7,8.31293]
[1739462264593,2.269,2652.3,2651.7,0.7708]
[1739462264759,0.05487439,2652.1,2651.7,0.7708]
[1739462264958,2.269,2652.3,2651.8,3.77102]
[1739462265207,0.05487439,2652.0,2651.9,0.454182]
[1739462265403,2.269,2652.3,2651.9,4.225042]
[1739462265607,0.05473683,2652.0,2651.9,0.454182]
[1739462265778,6.03932,2652.3,2651.9,4.225032]
[1739462265779,2.269,2652.3,2651.9,4.225032]
[1739462265974,0.05473683,2652.0,2651.9,4.225032]
[1739462266175,2.269,2652.2,2651.7,4.54183]
[1739462266402,0.05473683,2652.0,2651.7,4.54183]
[1739462266607,3.77081,2652.0,2651.3,3.0]
[1739462266807,2.32373683,2651.9,2651.3,0.7505]
[1739462267197,2.32373683,2651.9,2651.6,3.7712]
[1739462267392,2.32373683,2651.9,2651.5,3.77133]
[1739462268111,6.09467683,2651.9,2651.3,8.27909586]
[1739462268408,2.269,2651.7,2651.3,4.50747586]
[1739462268606,2.269,2651.7,2651.5,3.77133]
[1739462268806,2.269,2651.7,2651.6,3.7713]
[1739462269393,2.269,2652.2,2651.8,3.77101]
[1739462269613,2.269,2652.2,2651.8,3.77091]
[1739462269818,2.269,2652.2,2651.9,3.77087]
[1739462270143,2.269,2652.2,2652.0,3.77073]
[1739462270327,2.269,2652.2,2652.1,3.77059]
[1739462270518,6.03903,2652.5,2652.1,3.77059]
[1739462270728,2.269,2652.5,2652.1,3.77049]
[1739462270903,2.269,2652.5,2652.2,3.7704]
[1739462271086,2.269,2652.5,2652.0,3.77062]
[1739462271287,2.269,2652.5,2652.3,3.77023]
[1739462272021,2.269,2652.5,2652.4,3.77017]
[1739462272220,2.269,2652.5,2652.3,3.77023]
[1739462272636,2.269,2652.7,2652.1,0.454882]
[1739462272845,2.269,2652.6,2652.1,3.77046]
[1739462273044,6.03891,2652.6,2652.1,3.77046]
[1739462273447,6.0389,2652.6,2652.2,3.77044]
[1739462273804,3.77015,2652.5,2652.0,3.77066]
[1739462274134,6.03934,2652.3,2651.9,0.7782]
[1739462274325,2.269,2652.2,2651.8,6.77101]
[1739462274510,2.32400572,2652.2,2651.9,3.77086]
[1739462275694,2.32400572,2652.2,2652.1,3.77059]
[1739462275889,2.32400572,2652.2,2651.8,3.77093]
[1739462276084,2.32400572,2652.2,2651.7,4.52512486]
[1739462276327,2.32400572,2652.2,2651.7,4.52511486]
[1739462276495,2.32400572,2652.2,2651.8,3.771]
[1739462276697,2.32400572,2652.2,2651.9,3.77085]
[1739462276915,2.32400572,2652.2,2652.0,3.7707]
[1739462277115,2.32400572,2652.2,2652.1,3.77059]
[1739462277317,0.05500572,2652.2,2651.8,3.77098]
[1739462277513,2.269,2652.3,2651.9,3.77074]
[1739462277718,0.05489316,2652.1,2652.0,3.77067]
[1739462278040,2.269,2652.3,2652.0,3.77067]
[1739462278333,0.05489316,2652.1,2652.0,3.77067]
[1739462278492,2.269,2652.4,2652.0,3.77073]
[1739462279035,3.77041,2652.3,2651.8,3.77095]
[1739462279346,6.03956,2652.2,2651.7,0.75402486]
[1739462279539,3.7708,2652.0,2651.7,0.75402486]
[1739462279992,3.77105,2651.8,2651.3,1.65700959]
[1739462280193,3.82590068,2651.9,2651.4,3.0]
[1739462280393,6.03982,2652.0,2651.4,3.0]
[1739462280708,6.03982,2652.0,2651.3,0.8291]
[1739462280709,0.05475557,2651.9,2651.5,3.77134]
[1739462280904,0.05475557,2651.9,2651.3,0.8291]
[1739462281247,0.05475557,2651.9,2651.4,0.38291]
[1739462281392,3.82570557,2651.9,2651.4,4.15442]
[1739462281728,3.82570557,2651.9,2651.4,7.15442]
[1739462282033,3.77114,2651.8,2651.4,3.38291]
[1739462282215,3.82571557,2651.9,2651.4,3.0]
[1739462282424,0.05469927,2651.8,2651.5,3.77143]
[1739462282603,0.05469927,2651.8,2651.5,3.77136]
[1739462282807,0.05469927,2651.8,2651.4,6.77158]
[1739462283009,3.82578927,2651.8,2651.4,6.77158]
[1739462283931,0.05469927,2651.8,2651.5,3.77137]
[1739462284229,0.05469927,2651.8,2651.4,6.77158]
[1739462284631,0.05469927,2651.8,2651.4,3.0]
[1739462284793,0.05469927,2651.8,2651.4,6.77157]
[1739462284996,0.05469927,2651.8,2651.5,3.77132]
[1739462285207,0.05469927,2651.8,2651.4,7.98583864]
[1739462285406,13.47407449,2652.1,2651.5,3.77138]
[1739462285735,6.03974,2652.0,2651.5,3.77137]
[1739462285894,0.054668,2652.0,2651.7,3.77107]
[1739462286089,2.269,2652.2,2651.8,3.77092]
[1739462286318,2.269,2652.2,2651.7,0.377107]
[1739462286319,0.05434904,2651.9,2651.7,0.377107]
[1739462286534,6.03946,2652.2,2651.7,4.148177]
[1739462286733,0.05434904,2651.8,2651.7,4.148177]
[1739462287033,3.77061,2652.1,2651.7,4.148257]
[1739462287244,0.05434904,2651.8,2651.7,3.77115]
[1739462287569,6.03946,2652.2,2651.8,3.77093]
[1739462287952,3.77137,2651.6,2651.1,3.77201]
[1739462288264,6.04017,2651.7,2651.2,7.5436]
[1739462288464,3.77136,2651.6,2651.1,3.77189]
[1739462288639,2.269,2651.7,2651.1,0.90873729]
[1739462288840,2.269,2651.7,2651.2,7.54357]
[1739462288841,6.04023,2651.7,2651.2,7.54357]
[1739462289043,2.269,2651.7,2651.2,3.77177]
[1739462289365,0.05435529,2651.6,2651.2,3.77177]
[1739462289521,0.05435529,2651.6,2651.5,3.77145]
[1739462289727,2.269,2651.9,2651.4,3.77152]
[1739462289728,6.04,2651.9,2651.4,3.77152]
[1739462290049,0.05435529,2651.6,2651.5,3.77145]
[1739462290225,7.74536449,2652.1,2651.6,3.77123]
[1739462290418,0.05423018,2651.8,2651.6,3.77123]
[1739462290736,2.269,2652.0,2651.7,3.77114]
[1739462290921,2.269,2652.0,2651.6,3.77123]
[1739462291121,2.269,2652.0,2651.7,3.77113]
[1739462291323,3.66370449,2652.4,2651.5,0.8079]
[1739462291625,6.0394,2652.3,2651.9,3.77087]
[1739462291865,3.66370449,2652.4,2651.5,0.8079]
[1739462292037,3.7698,2652.7,2652.2,3.77035]
[1739462292235,3.7698,2652.7,2652.1,0.7732]
[1739462292433,3.77004,2652.5,2652.1,0.7732]
[1739462292657,13.47235449,2652.7,2652.2,3.77038]
[1739462292851,3.76989,2652.6,2652.2,3.77038]
[1739462293053,3.77005,2652.5,2652.1,0.7732]
[1739462293256,3.77031,2652.3,2651.8,3.77095]
[1739462293454,3.77046,2652.2,2651.7,3.77112]
[1739462293636,6.03931,2652.3,2651.8,3.77099]
[1739462293637,2.269,2652.3,2651.8,3.77099]
[1739462293823,6.03931,2652.3,2651.9,3.77087]
[1739462294228,2.269,2652.3,2651.7,3.77111]
[1739462294429,2.269,2652.3,2651.9,3.77084]
[1739462294835,2.269,2652.3,2652.0,3.77073]
[1739462295579,0.0075,2652.6,2651.7,0.52958359]
[1739462295741,6.03875,2652.7,2652.2,3.77035]
[1739462295938,0.0075,2652.6,2652.0,3.7707]
[1739462296247,2.269,2652.5,2652.2,3.77045]
[1739462296548,6.03902,2652.5,2652.0,3.7707]
[1739462297084,6.03902,2652.5,2652.0,7.54137]
[1739462297247,6.04671,2652.4,2652.0,3.77067]
[1739462297447,0.04713233,2652.3,2651.1,0.18795771]
[1739462297650,0.04713233,2652.3,2651.3,3.77173]
[1739462297651,6.03971,2652.1,2651.3,3.77173]
[1739462297894,3.77077,2652.0,2651.5,3.77135]
[1739462298412,3.77125,2651.7,2651.3,0.75513854]
[1739462298628,3.81848239,2651.6,2651.1,3.77197]
[1739462298750,10.30408337,2651.7,2651.1,3.77188]
[1739462298953,0.015,2651.8,2651.1,3.77188]
[1739462299311,2.284,2651.8,2651.4,3.77156]
[1739462299804,2.284,2651.8,2651.4,3.77153]
[1739462300005,6.05504,2651.8,2651.4,3.77153]
[1739462300149,0.311,2652.0,2651.0,0.75491209]
[1739462300359,3.77045,2652.2,2651.5,3.77144]
[1739462300668,3.77081,2652.0,2651.5,3.77144]
[1739462300877,0.015,2652.1,2651.8,3.77099]
[1739462301069,0.015,2652.1,2651.7,3.77115]
[1739462301417,2.284,2652.1,2651.8,3.77101]
[1739462301586,4.08132,2652.3,2651.8,3.77101]
[1739462301791,4.08132,2652.3,2651.9,3.77087]
[1739462301993,4.08132,2652.3,2651.4,0.7744]
[1739462301994,0.311,2652.3,2651.4,0.7744]
[1739462302305,0.311,2652.3,2651.8,3.77088]
[1739462302470,4.08134,2652.3,2651.8,3.77088]
[1739462303050,4.08134,2652.3,2651.8,8.596046]
[1739462303251,4.08134,2652.3,2651.8,4.825096]
[1739462303504,2.269,2652.7,2651.9,3.77088]
[1739462303707,6.03886,2652.7,2651.7,0.7987]
[1739462304015,3.82478687,2652.6,2651.9,3.7708]
[1739462304194,3.82478687,2652.6,2652.1,3.77052]
[1739462304521,3.82478687,2652.6,2652.1,7.54104]
[1739462304818,3.77017,2652.4,2652.0,0.37708]
[1739462305108,3.77017,2652.4,2651.9,3.77077]
[1739462305461,0.05483687,2652.3,2652.0,3.77066]
[1739462305661,0.05483687,2652.3,2651.7,1.56105925]
[1739462305662,9.80895,2652.6,2651.7,4.56105925]
[1739462305989,0.05483687,2652.2,2652.0,3.77073]
[1739462306195,3.77005,2652.5,2652.0,3.77073]
[1739462306355,0.05483687,2652.1,2652.0,3.77073]
[1739462306551,3.77005,2652.5,2652.0,3.77073]
[1739462306750,0.05483687,2652.1,2652.0,3.77073]
[1739462306955,3.77005,2652.5,2652.0,4.60821379]
[1739462307211,0.05483687,2652.1,2652.0,4.60821379]
[1739462307391,3.77014,2652.5,2652.0,4.60821379]
[1739462307594,0.05483687,2652.1,2651.9,3.77083]
[1739462307759,3.77032,2652.3,2651.9,3.77083]
[1739462308178,0.05478684,2652.2,2651.8,3.77102]
[1739462308395,3.77066,2652.1,2651.7,0.76235925]
[1739462308722,0.94420805,2653.1,2652.2,3.77045]
[1739462309020,0.015,2652.7,2651.6,1.54200186]
[1739462309221,3.77026,2652.4,2651.9,6.77081]
[1739462309516,3.7706,2652.1,2651.6,4.57412]
[1739462309683,3.7706,2652.1,2651.6,3.77122]
[1739462309883,3.7706,2652.1,2651.6,3.77117]
[1739462310067,3.7706,2652.1,2651.7,3.77115]
[1739462310268,2.269,2652.3,2651.7,3.77109]
[1739462310506,3.77048,2652.2,2651.7,3.77109]
[1739462311063,3.77048,2652.2,2651.7,7.54219]
[1739462311270,3.77048,2652.2,2651.6,3.7712]
[1739462311271,3.77065,2652.1,2651.6,3.7712]
[1739462311515,3.81797478,2652.0,2651.5,3.77134]
[1739462311691,3.77103,2651.8,2651.4,3.77158]
[1739462311890,3.77094,2651.9,2651.4,3.77158]
[1739462312087,3.77084,2652.0,2651.5,3.77144]
[1739462312491,6.03969,2652.1,2651.6,3.77123]
[1739462312819,2.284,2652.1,2651.8,3.77095]
[1739462313311,2.269,2652.3,2651.3,4.51225772]
[1739462313465,3.77045,2652.2,2651.7,3.77107]
[1739462313867,3.77045,2652.2,2651.8,3.77095]
[1739462314046,2.269,2652.3,2651.9,3.77085]
[1739462314184,2.269,2652.3,2651.5,0.7759]
[1739462314380,2.284,2652.4,2652.0,3.77059]
[1739462314616,6.03958,2652.2,2651.7,3.77115]
[1739462314797,2.269,2652.0,2651.7,3.77115]
[1739462314999,1.47931483,2652.4,2651.9,3.77078]
[1739462315205,3.77017,2652.4,2651.9,3.77078]
[1739462315378,3.77038,2652.3,2651.8,3.77101]
[1739462315581,6.03938,2652.3,2651.8,3.77101]
[1739462315985,6.03933,2652.3,2651.7,3.77106]
[1739462316339,3.77054,2652.2,2651.7,3.77106]
[1739462316541,2.269,2652.3,2651.8,3.771]
[1739462316681,2.269,2652.3,2651.9,3.77081]
[1739462317083,2.269,2652.3,2651.8,3.77102]
[1739462317314,2.269,2652.1,2651.9,3.77087]
[1739462317684,2.269,2652.1,2651.8,3.771]
[1739462317885,2.269,2652.1,2651.9,3.77078]
[1739462318086,2.269,2652.1,2652.0,3.77073]
[1739462318643,2.269,2652.4,2652.0,3.77073]
[1739462318840,2.269,2652.4,2651.7,0.457516]
[1739462319049,0.05469928,2652.3,2652.0,3.7707]
[1739462319356,0.05469928,2652.3,2652.0,3.77073]
[1739462319794,0.05469928,2652.3,2652.1,3.77053]
[1739462319999,2.269,2652.5,2652.1,3.77053]
[1739462320194,2.269,2652.5,2652.1,3.77058]
[1739462320399,0.05469303,2652.4,2652.2,3.77044]
[1739462320941,0.05469303,2652.4,2652.1,3.77058]
[1739462321250,0.05469303,2652.4,2652.2,3.77036]
[1739462321487,0.05469303,2652.4,2652.2,3.77045]
[1739462322106,0.05469303,2652.4,2652.1,8.295193]
[1739462322303,0.05469303,2652.4,2652.3,3.77031]
[1739462322515,2.32369303,2652.4,2652.3,3.77031]
[1739462322717,2.32369303,2652.4,2652.2,3.77039]
[1739462322950,2.32369303,2652.4,2652.2,0.9112193]
[1739462323148,2.32369303,2652.4,2652.1,3.77058]
[1739462323356,2.32369303,2652.4,2652.0,3.77072]
[1739462323999,2.32369303,2652.4,2652.2,3.77036]
[1739462324757,2.32369303,2652.4,2651.9,3.77074]
[1739462324905,0.0075,2652.3,2651.9,3.77074]
[1739462325293,2.269,2652.1,2651.8,3.4228816]
[1739462325462,2.269,2651.9,2651.3,3.77164]
[1739462325626,0.06236814,2652.3,2651.4,3.77148]
[1739462325627,2.269,2651.8,2651.4,3.77148]
[1739462325965,2.269,2651.4,2650.8,3.77235]
[1739462326108,2.269,2651.4,2650.7,0.74845643]
[1739462326109,3.77203,2651.1,2650.7,0.74845643]
[1739462326299,2.269,2651.0,2650.7,0.55658846]
[1739462326498,2.32338651,2651.0,2650.5,1.81089814]
[1739462326802,2.32338651,2651.0,2650.5,1.04479814]
[1739462327002,2.32338651,2651.0,2650.6,3.77263]
[1739462327202,0.05438651,2651.0,2650.6,3.77263]
[1739462327459,0.05438651,2651.0,2650.9,3.7723]
[1739462327601,3.97508429,2651.4,2650.9,3.7723]
[1739462327803,0.05411743,2651.0,2650.9,3.7723]
[1739462328052,3.97508429,2651.4,2650.8,3.77244]
[1739462328214,0.05411743,2651.0,2650.8,3.77244]
[1739462328398,10.01574429,2651.4,2650.6,3.77264]
[1739462328399,3.77202,2651.1,2650.6,3.77264]
[1739462328608,0.05411743,2650.9,2650.5,4.59495]
[1739462328809,3.77202,2651.1,2650.6,3.77264]
[1739462329060,0.05411743,2650.8,2650.6,3.77264]
[1739462329245,6.04838,2651.2,2650.7,3.77258]
[1739462329565,3.77207,2651.1,2650.6,3.77264]
[1739462329704,3.82618743,2651.1,2650.6,3.77264]
[1739462329905,0.05411743,2651.1,2650.6,3.77264]
[1739462330166,0.05411743,2651.1,2650.7,3.77256]
[1739462330957,0.05411743,2651.1,2650.6,3.77264]
[1739462331461,3.82613743,2651.1,2650.6,3.77264]
[1739462332465,3.82613743,2651.1,2650.5,0.8221]
[1739462332785,0.66438117,2651.1,2650.5,4.59489]
[1739462332968,3.82622743,2651.1,2650.6,3.7727]
[1739462333113,0.05411743,2651.1,2650.5,4.59489]
[1739462333305,3.82615743,2651.1,2650.6,3.77264]
[1739462334108,0.05411743,2651.1,2650.9,3.77228]
[1739462334304,3.77174,2651.3,2650.7,3.77251]
[1739462334627,0.05341047,2651.0,2650.7,7.54498]
[1739462334821,7.54356,2651.3,2650.7,8.381688]
[1739462335044,0.05341047,2650.9,2650.7,8.381688]
[1739462335244,3.77174,2651.3,2650.8,3.77243]
[1739462336306,3.77215,2651.1,2650.5,3.7728]
[1739462336706,3.77239,2650.9,2650.4,3.77297]
[1739462336972,4.89325343,2650.9,2650.4,3.77297]
[1739462337132,3.77247,2650.8,2650.2,3.77322]
[1739462337514,3.7726,2650.7,2650.2,3.77322]
[1739462337758,3.81991965,2650.6,2650.1,3.77344]
[1739462338059,3.77297,2650.5,2650.0,3.77357]
[1739462338360,4.800543,2650.5,2650.0,3.77355]
[1739462338511,4.800533,2650.5,2650.0,3.77355]
[1739462338856,1.027573,2650.5,2649.9,0.7630296]
[1739462339070,3.77314,2650.4,2649.9,4.5366696]
[1739462339269,7.56088,2650.5,2650.0,3.77358]
[1739462339470,0.015,2650.5,2649.9,0.7630296]
[1739462339751,3.77308,2650.4,2649.9,3.7737]
[1739462339950,7.45204429,2650.5,2650.0,3.7735]
[1739462340351,3.78796,2650.5,2650.0,3.7735]
[1739462340954,0.0075,2650.5,2650.1,3.77343]
[1739462341154,5.591,2650.8,2650.5,3.7728]
[1739462341323,5.28,2650.8,2650.7,3.77258]
[1739462341669,3.77214,2651.1,2650.6,3.77272]
[1739462341813,3.77224,2651.0,2650.4,4.5437]
[1739462342017,2.269,2650.9,2650.4,4.5437]
[1739462342354,6.04132,2650.9,2650.4,4.5437]
[1739462343013,6.04154,2650.8,2650.2,4.54389]
[1739462343220,2.269,2650.5,2650.1,3.77344]
[1739462343419,2.269,2650.5,2650.1,7.54688]
[1739462343658,2.269,2650.5,2650.3,3.77307]
[1739462343956,3.77216,2651.0,2650.5,3.77287]
[1739462344237,0.015,2651.2,2650.7,3.77257]
[1739462344393,3.77216,2651.0,2650.5,3.77276]
[1739462344557,5.05997843,2651.2,2650.6,3.77271]
[1739462344764,0.0075,2651.0,2650.6,3.77271]
[1739462344963,3.77978,2651.0,2650.4,4.5435]
[1739462345284,6.04137,2650.9,2650.4,3.77294]
[1739462345453,6.0416,2650.7,2650.2,3.7732]
[1739462345795,2.269,2650.4,2650.0,3.77347]
[1739462346152,2.269,2650.2,2649.8,3.77376]
[1739462346347,2.269,2650.2,2649.9,3.77372]
[1739462346651,2.269,2650.2,2649.9,3.77365]
[1739462347688,2.269,2650.3,2649.9,3.77362]
[1739462347889,2.269,2650.3,2650.0,3.77351]
[1739462348091,2.269,2650.3,2649.9,3.77371]
[1739462348298,0.0075,2650.2,2649.7,6.7369353]
[1739462348594,2.269,2649.9,2649.7,6.7369353]
[1739462348953,2.269,2649.9,2649.7,0.7589353]
[1739462349152,2.269,2649.7,2649.2,3.7746]
[1739462349512,6.04302,2649.7,2649.2,3.7746]
[1739462349711,0.05071476,2649.6,2648.9,3.0]
[1739462349854,0.05071476,2649.6,2649.3,3.77449]
[1739462350268,2.31971476,2649.6,2649.3,3.77449]
[1739462350486,2.269,2649.4,2649.0,3.77499]
[1739462350651,2.269,2649.4,2649.0,7.54998]
[1739462350865,0.05010635,2649.3,2649.1,3.77473]
[1739462351176,0.05010635,2649.3,2649.0,7.5499]
[1739462351355,0.05010635,2649.3,2649.0,3.77491]
[1739462351556,0.05010635,2649.3,2648.9,6.77504]
[1739462351755,0.05010635,2649.3,2649.0,3.77493]
[1739462351997,3.77432,2649.5,2649.0,3.77493]
[1739462352170,0.05010635,2649.2,2649.1,3.77485]
[1739462352371,3.77403,2649.7,2649.2,3.7747]
[1739462352570,0.05010635,2649.2,2649.1,3.77485]
[1739462352772,0.015,2649.5,2649.1,3.77485]
[1739462353171,3.77446,2649.4,2648.7,4.52934]